bitfinex/quotes_SOLUSD_20260211
["timestamp","ask_amount","ask_price","bid_price","bid_amount"]
[1770835147403,1.2929512,79.889,79.853,1.32735539]
[1770835147613,1.2929512,79.889,79.855,1.32735539]
[1770835147788,14.28601046,79.88,79.854,12.5228542]
[1770835147989,1.2929512,79.88,79.854,12.5228542]
[1770835148189,12.99305926,79.89,79.855,1.32735539]
[1770835148190,17.87822972,79.889,79.855,1.32735539]
[1770835148406,1.2929512,79.889,79.855,1.32735539]
[1770835148605,12.99305926,79.87,79.836,1.32735539]
[1770835148911,1.2929512,79.888,79.832,12.5262711]
[1770835148912,12.99305926,79.86,79.832,12.5262711]
[1770835149611,5.36086188,79.869,79.831,1.32735539]
[1770835149990,17.88146343,79.869,79.831,1.32735539]
[1770835150710,12.99305926,79.86,79.831,1.32735539]
[1770835151096,49.18271923,79.869,79.831,1.32735539]
[1770835152194,12.99305926,79.88,79.841,1.32735539]
[1770835152394,5.36086188,79.879,79.841,1.32735539]
[1770835153507,12.99305926,79.87,79.841,1.32735539]
[1770835154709,1.2929512,79.869,79.842,12.52473635]
[1770835155011,12.99305926,79.86,79.833,12.52614801]
[1770835155202,5.36086188,79.868,79.834,1.32735539]
[1770835155820,1.2929512,79.859,79.828,12.52677932]
[1770835156028,1.2929512,79.859,79.829,1.32735539]
[1770835156810,1.2929512,79.859,79.83,12.52661906]
[1770835158023,1.2929512,79.859,79.83,1.32735539]
[1770835158218,1.2929512,79.877,79.841,1.32735539]
[1770835158597,13.81227847,79.877,79.841,1.32735539]
[1770835158801,1.2929512,79.877,79.841,1.32735539]
[1770835159014,5.36086188,79.881,79.851,1.32735539]
[1770835159318,5.36086188,79.879,79.851,1.32735539]
[1770835159995,5.36086188,79.889,79.853,1.32735539]
[1770835160810,12.51752453,79.888,79.853,1.32735539]
[1770835161416,1.32458694,79.887,79.843,1.32470963]
[1770835161622,5.36086188,79.868,79.837,1.32470963]
[1770835161815,48.18,79.886,79.836,12.52567763]
[1770835161816,5.36086188,79.879,79.841,1.32470963]
[1770835162117,12.51909161,79.878,79.842,12.52473635]
[1770835162324,1.32458694,79.877,79.843,1.32470963]
[1770835162818,1.32458694,79.859,79.832,12.52630524]
[1770835163207,1.32458694,79.859,79.833,1.32470963]
[1770835163817,1.32458694,79.859,79.832,12.52630524]
[1770835163999,12.93198389,79.86,79.832,12.52630524]
[1770835164000,5.36086188,79.869,79.833,1.32470963]
[1770835164202,1.32458694,79.867,79.834,13.85070106]
[1770835164401,12.93198389,79.86,79.834,13.85070106]
[1770835165222,12.52065908,79.868,79.835,1.32470963]
[1770835165737,13.84524602,79.868,79.835,1.32470963]
[1770835166025,1.32458694,79.867,79.835,1.32470963]
[1770835166408,12.93198389,79.86,79.836,12.52567763]
[1770835166805,1.32458694,79.866,79.836,12.52567763]
[1770835167007,12.52092451,79.867,79.837,1.29457355]
[1770835167508,5.36086188,79.869,79.837,1.29457355]
[1770835168116,13.93446024,79.868,79.837,1.29457355]
[1770835168614,12.93198389,79.86,79.838,12.52536386]
[1770835169413,1.41380116,79.867,79.838,12.52536386]
[1770835169618,1.41380116,79.867,79.838,13.81993741]
[1770835170031,1.41380116,79.859,79.838,12.52536386]
[1770835170309,12.93198389,79.85,79.819,1.29457355]
[1770835170531,1.41380116,79.851,79.821,1.29457355]
[1770835170706,12.52262835,79.856,79.821,1.29457355]
[1770835171123,13.93642951,79.856,79.821,1.29457355]
[1770835171407,12.93198389,79.85,79.821,1.29457355]
[1770835171910,13.93642951,79.856,79.821,1.29457355]
[1770835171911,1.41380116,79.856,79.821,1.29457355]
[1770835172224,5.36086188,79.879,79.841,1.29457355]
[1770835172612,12.51909161,79.878,79.843,1.29457355]
[1770835172811,6.77466304,79.879,79.843,1.29457355]
[1770835172812,1.41380116,79.869,79.843,1.29457355]
[1770835174008,12.93198389,79.87,79.843,1.29457355]
[1770835174714,12.93198389,79.87,79.844,12.52442262]
[1770835174909,12.93198389,79.87,79.844,13.81899617]
[1770835175118,14.34578505,79.87,79.845,1.29457355]
[1770835175509,12.93198389,79.86,79.843,1.29457355]
[1770835175719,18.29284577,79.87,79.843,1.29457355]
[1770835175927,12.93198389,79.87,79.843,1.29457355]
[1770835176614,1.41380116,79.869,79.843,1.29457355]
[1770835176935,1.41380116,79.869,79.844,12.52442262]
[1770835177430,12.93198389,79.88,79.845,1.29457355]
[1770835177634,12.93198389,79.89,79.851,1.29457355]
[1770835177819,25.44923865,79.89,79.851,1.29457355]
[1770835178008,12.93198389,79.89,79.851,1.29457355]
[1770835178921,12.93198389,79.89,79.853,1.29457355]
[1770835180121,1.41380116,79.905,79.86,12.93198389]
[1770835180318,1.41380116,79.905,79.871,1.29457355]
[1770835181212,1.41380116,79.899,79.864,1.29457355]
[1770835181411,12.93198389,79.88,79.851,1.29457355]
[1770835181625,1.41380116,79.879,79.851,1.29457355]
[1770835181852,1.41380116,79.859,79.83,12.52661906]
[1770835182038,12.93198389,79.84,79.821,13.82257506]
[1770835182352,12.93198389,79.85,79.822,1.29457355]
[1770835182650,12.93198389,79.84,79.817,12.52855771]
[1770835182818,12.93198389,79.84,79.818,1.29457355]
[1770835183142,1.41380116,79.849,79.819,12.52834538]
[1770835183313,1.41380116,79.839,79.81,1.29457355]
[1770835183517,12.93198389,79.84,79.812,1.29457355]
[1770835184124,12.93198389,79.85,79.812,1.29457355]
[1770835184720,5.36086188,79.881,79.841,1.29457355]
[1770835184912,1.41380116,79.878,79.841,1.29457355]
[1770835185117,12.93198389,79.87,79.841,1.29457355]
[1770835185320,12.93198389,79.87,79.83,12.93198389]
[1770835185321,1.41380116,79.876,79.843,1.29457355]
[1770835185641,12.93198389,79.87,79.843,1.29457355]
[1770835186129,12.93198389,79.86,79.842,12.52473635]
[1770835186329,1.41380116,79.859,79.827,1.29457355]
[1770835187141,12.93198389,79.85,79.827,1.29457355]
[1770835188032,1.41380116,79.859,79.829,1.29457355]
[1770835188432,12.93198389,79.86,79.829,1.29457355]
[1770835189641,14.34578505,79.85,79.828,12.5269329]
[1770835190136,12.93198389,79.85,79.823,1.29457355]
[1770835191244,1.29677979,79.848,79.82,52.06]
[1770835191430,1.29677979,79.848,79.768,100.29009682]
[1770835191431,12.93198389,79.84,79.817,1.38212283]
[1770835192744,12.93198389,79.84,79.818,12.52850234]
[1770835193036,12.93198389,79.84,79.819,1.38212283]
[1770835194426,14.22876368,79.85,79.806,1.38212283]
[1770835195146,14.22876368,79.85,79.811,1.38212283]
[1770835196338,14.22876368,79.85,79.81,12.93198389]
[1770835196339,14.22876368,79.85,79.813,1.38212283]
[1770835196538,1.29677979,79.858,79.821,1.38212283]
[1770835196752,12.93198389,79.86,79.821,1.38212283]
[1770835197048,1.29677979,79.859,79.821,1.38212283]
[1770835197228,1.29677979,79.858,79.821,1.38212283]
[1770835198226,12.93198389,79.86,79.821,1.38212283]
[1770835198451,12.93198389,79.86,79.823,1.38212283]
[1770835198742,12.93198389,79.88,79.831,1.38212283]
[1770835199047,1.29677979,79.879,79.831,1.38212283]
[1770835199549,12.93198389,79.87,79.831,1.38212283]
[1770835200450,13.81571467,79.879,79.831,1.38212283]
[1770835200748,1.29677979,79.878,79.833,1.38212283]
[1770835201159,1.29677979,79.878,79.841,1.38212283]
[1770835201326,12.93198389,79.87,79.841,1.38212283]
[1770835201526,1.29677979,79.885,79.841,1.38212283]
[1770835201727,1.29677979,79.909,79.861,1.38212283]
[1770835201950,12.93198389,79.91,79.871,1.38212283]
[1770835202859,0.1,79.92,79.891,1.38212283]
[1770835203065,0.1,79.92,79.892,1.38212283]
[1770835203242,0.1,79.92,79.9,12.93198389]
[1770835203448,0.1,79.95,79.91,12.93198389]
[1770835203647,1.29677979,79.949,79.921,1.38212283]
[1770835204055,1.29677979,79.939,79.909,1.38212283]
[1770835204944,12.93198389,79.94,79.911,1.38212283]
[1770835205247,14.32876368,79.95,79.911,1.38212283]
[1770835205443,0.1,79.95,79.921,1.38212283]
[1770835205666,0.1,79.98,79.941,1.38212283]
[1770835205667,12.50343616,79.979,79.941,1.38212283]
[1770835206040,13.03198389,79.98,79.941,1.38212283]
[1770835206637,1.29677979,79.969,79.931,1.38212283]
[1770835206863,12.50328211,79.979,79.941,1.38212283]
[1770835207064,0.1,79.98,79.943,1.38212283]
[1770835207265,0.1,79.98,79.942,43.78174175]
[1770835207266,0.1,79.98,79.961,1.38212283]
[1770835208744,31.24719567,80.008,79.961,1.38212283]
[1770835208745,1.29677979,80.012,79.961,1.38212283]
[1770835209065,1.29677979,80.014,79.981,1.38212283]
[1770835209561,87.67716151,80.033,79.972,43.76531785]
[1770835209562,12.93198389,80.01,79.973,1.38212283]
[1770835209757,12.49730008,80.018,79.981,1.38212283]
[1770835210072,1.29677979,79.999,79.963,1.38212283]
[1770835210277,1.29677979,79.979,79.943,1.38212283]
[1770835210477,1.29677979,79.959,79.914,1.38212283]
[1770835210644,5.36086188,79.985,79.905,1.38212283]
[1770835210645,1.29677979,79.949,79.905,1.38212283]
[1770835210842,12.93198389,79.93,79.905,1.38212283]
[1770835211153,12.93198389,79.95,79.911,1.38212283]
[1770835211358,1.29677979,79.959,79.921,1.38212283]
[1770835211560,1.29677979,79.949,79.91,14.31410672]
[1770835212144,12.93198389,79.95,79.91,14.31410672]
[1770835212344,12.93198389,79.94,79.91,1.38212283]
[1770835212556,1.29677979,79.949,79.91,14.31410672]
[1770835212764,12.93198389,79.94,79.91,1.38212283]
[1770835213262,12.93198389,79.94,79.907,1.38212283]
[1770835213461,12.93198389,79.95,79.911,1.38212283]
[1770835214548,12.93198389,79.95,79.912,52.14]
[1770835214749,12.93198389,79.95,79.913,1.38212283]
[1770835214951,1.29677979,79.969,79.931,1.38212283]
[1770835215364,1.29677979,79.969,79.933,1.38212283]
[1770835216758,1.29677979,79.969,79.902,1.38212283]
[1770835216759,1.29677979,79.949,79.902,1.38212283]
[1770835216955,1.29677979,79.949,79.91,14.31410672]
[1770835217168,1.29677979,79.949,79.911,1.38212283]
[1770835217866,1.29677979,79.949,79.913,1.38212283]
[1770835218168,1.29677979,79.949,79.92,14.31410672]
[1770835218560,1.29677979,79.949,79.921,1.38212283]
[1770835219672,1.29677979,79.949,79.887,100.14083424]
[1770835219673,1.29677979,79.929,79.894,12.51658447]
[1770835219975,1.29677979,79.909,79.871,1.38212283]
[1770835220156,12.90189356,79.89,79.861,1.38212283]
[1770835220360,1.29677979,79.889,79.861,1.38212283]
[1770835221072,1.29677979,79.889,79.855,43.82944085]
[1770835221255,1.35044433,79.899,79.861,1.28727612]
[1770835221454,1.35044433,79.899,79.87,12.90189356]
[1770835221665,1.35044433,79.889,79.856,1.28727612]
[1770835221852,1.35044433,79.898,79.861,1.28727612]
[1770835223877,12.90189356,79.88,79.856,12.52254057]
[1770835224373,14.25233789,79.88,79.852,53.48727612]
[1770835224572,1.35044433,79.886,79.85,12.90189356]
[1770835224750,12.90189356,79.89,79.851,1.28727612]
[1770835225354,1.35044433,79.889,79.851,1.28727612]
[1770835225572,12.90189356,79.86,79.832,1.28727612]
[1770835225772,14.25233789,79.86,79.832,1.28727612]
[1770835225973,12.90189356,79.87,79.833,1.28727612]
[1770835226867,1.35044433,79.859,79.829,52.22]
[1770835227063,1.33947892,79.868,79.831,1.28727612]
[1770835227265,12.90189356,79.86,79.831,1.28727612]
[1770835227570,12.52050232,79.869,79.831,1.28727612]
[1770835227571,12.90189356,79.87,79.831,1.28727612]
[1770835228077,1.33947892,79.877,79.841,1.3379067]
[1770835228458,12.90189356,79.88,79.841,1.3379067]
[1770835228675,12.90189356,79.88,79.843,1.3379067]
[1770835229288,14.24137248,79.88,79.843,1.3379067]
[1770835230677,14.24137248,79.88,79.845,1.3379067]
[1770835230979,1.33947892,79.898,79.861,1.3379067]
[1770835231858,12.90189356,79.89,79.861,1.3379067]
[1770835232659,14.24137248,79.9,79.863,1.3379067]
[1770835232855,1.33947892,79.899,79.863,1.3379067]
[1770835233876,1.33947892,79.879,79.845,1.3379067]
[1770835234162,1.33947892,79.889,79.851,1.3379067]
[1770835234961,1.33947892,79.859,79.821,1.3379067]
[1770835235181,47.9,79.877,79.841,1.3379067]
[1770835235385,12.90189356,79.88,79.841,1.3379067]
[1770835235571,12.90189356,79.87,79.841,1.3379067]
[1770835235766,1.33947892,79.869,79.83,12.90189356]
[1770835235984,1.33947892,79.869,79.831,1.3379067]
[1770835236767,12.90189356,79.86,79.831,1.3379067]
[1770835237179,1.33947892,79.868,79.833,1.3379067]
[1770835238267,1.33947892,79.868,79.832,12.52630524]
[1770835238467,12.90189356,79.86,79.832,12.52630524]
[1770835238677,1.33947892,79.859,79.828,12.52683099]
[1770835238875,1.33947892,79.859,79.784,1.25338413]
[1770835238876,1.33947892,79.849,79.815,1.3379067]
[1770835239389,1.33947892,79.847,79.816,12.52881627]
[1770835240087,12.90189356,79.84,79.816,12.52881627]
[1770835240387,1.33947892,79.847,79.816,12.52881627]
[1770835240569,1.33947892,79.856,79.821,1.3379067]
[1770835241197,12.90189356,79.86,79.82,12.90189356]
[1770835241198,1.33947892,79.859,79.82,12.90189356]
[1770835241396,1.33947892,79.829,79.796,32.66774946]
[1770835241695,1.33947892,79.819,79.782,1.3379067]
[1770835242107,1.33947892,79.837,79.801,1.3379067]
[1770835242696,43.82450164,79.864,79.811,1.3379067]
[1770835242697,1.33947892,79.847,79.811,1.3379067]
[1770835242873,1.33947892,79.858,79.821,1.3379067]
[1770835243075,12.90189356,79.85,79.821,1.3379067]
[1770835243497,1.33947892,79.849,79.811,1.3379067]
[1770835244392,1.33947892,79.849,79.813,1.3379067]
[1770835246590,1.33947892,79.849,79.814,43.85195578]
[1770835246981,1.33947892,79.849,79.815,1.3379067]
[1770835247176,14.24137248,79.84,79.814,43.85195578]
[1770835247370,1.33947892,79.839,79.814,12.52913022]
[1770835248498,1.33947892,79.839,79.814,43.85195578]
[1770835250101,1.33947892,79.847,79.815,1.3379067]
[1770835250607,1.26170573,79.84,79.815,1.3379067]
[1770835250985,47.86,79.857,79.817,1.39709803]
[1770835251297,12.90189356,79.85,79.817,1.39709803]
[1770835251821,12.90189356,79.84,79.816,43.85085696]
[1770835251978,12.90189356,79.83,79.816,43.85085696]
[1770835252183,12.90189356,79.83,79.803,31.32712387]
[1770835252990,0.96837603,79.833,79.803,31.32712387]
[1770835253198,12.90189356,79.82,79.801,12.53117128]
[1770835253507,12.90189356,79.82,79.784,1.39709803]
[1770835253886,13.87006103,79.82,79.784,1.39709803]
[1770835254407,0.96816747,79.819,79.784,1.39709803]
[1770835254587,12.90189356,79.81,79.784,1.39709803]
[1770835254988,0.96796052,79.809,79.783,43.86899464]
[1770835257112,5.36086188,79.831,79.784,1.39709803]
[1770835257113,12.90189356,79.8,79.784,1.39709803]
[1770835257490,0.96757644,79.814,79.784,1.39709803]
[1770835257491,12.90189356,79.81,79.784,1.39709803]
[1770835257988,13.86926876,79.81,79.784,1.39709803]
[1770835258185,0.9673752,79.809,79.784,1.39709803]
[1770835259693,0.9673752,79.809,79.785,43.86789496]
[1770835259919,12.90189356,79.81,79.786,1.39709803]
[1770835260226,0.96697389,79.799,79.785,12.53368427]
[1770835260393,12.90189356,79.79,79.76,0.2]
[1770835260597,12.90189356,79.77,79.743,12.54028566]
[1770835260801,12.90189356,79.77,79.744,1.39986079]
[1770835261003,12.90189356,79.76,79.744,1.39986079]
[1770835261411,12.90189356,79.75,79.713,1.39986079]
[1770835261622,43.86734514,79.786,79.715,1.39986079]
[1770835261918,12.90189356,79.78,79.741,1.39986079]
[1770835262709,12.90189356,79.81,79.771,1.39986079]
[1770835262908,12.90189356,79.82,79.781,1.39986079]
[1770835263517,12.90189356,79.81,79.781,1.39986079]
[1770835264017,12.90189356,79.81,79.783,1.39986079]
[1770835264200,47.84,79.827,79.783,1.39986079]
[1770835264201,12.90189356,79.82,79.783,1.39986079]
[1770835264399,12.90189356,79.8,79.782,43.8695445]
[1770835264613,12.90189356,79.8,79.782,12.53415557]
[1770835265919,12.90189356,79.81,79.782,12.53415557]
[1770835266415,12.90189356,79.81,79.783,1.39986079]
[1770835266722,12.90189356,79.83,79.791,1.39986079]
[1770835266901,12.90189356,79.82,79.791,1.39986079]
[1770835267297,12.90189356,79.83,79.792,1.39986079]
[1770835267498,12.51815131,79.884,79.821,1.39986079]
[1770835267796,47.82,79.867,79.821,1.39986079]
[1770835268211,12.90189356,79.85,79.821,1.39986079]
[1770835268518,12.90189356,79.86,79.823,1.39986079]
[1770835270504,12.90189356,79.86,79.825,1.39986079]
[1770835271714,12.90189356,79.86,79.827,1.39986079]
[1770835272303,12.90189356,79.87,79.831,1.39986079]
[1770835273922,12.90189356,79.86,79.833,1.39986079]
[1770835274516,12.90189356,79.87,79.833,1.39986079]
[1770835275911,12.90189356,79.87,79.834,43.84097001]
[1770835276226,12.90189356,79.86,79.835,1.39986079]
[1770835277717,12.90189356,79.86,79.836,12.52567763]
[1770835278107,12.90189356,79.86,79.836,45.23973251]
[1770835278310,12.90189356,79.85,79.799,1.39986079]
[1770835278528,12.90189356,79.84,79.801,1.39986079]
[1770835278728,5.36086188,79.86,79.74,12.90189356]
[1770835278729,12.90189356,79.82,79.783,1.39986079]
[1770835278904,47.82,79.829,79.801,1.39986079]
[1770835280121,47.82,79.829,79.803,1.39986079]
[1770835280720,12.90189356,79.83,79.803,1.39986079]
[1770835280918,12.94275067,79.83,79.803,1.39986079]
[1770835281517,47.82,79.838,79.803,1.39986079]
[1770835281728,5.36086188,79.87,79.811,1.39986079]
[1770835282033,12.94275067,79.86,79.821,1.39986079]
[1770835282238,4.61729252,79.871,79.804,52.54]
[1770835282239,6.53561469,79.881,79.83,12.94275067]
[1770835282413,12.94275067,79.87,79.831,1.39986079]
[1770835283037,12.94275067,79.87,79.841,1.39986079]
[1770835283729,12.94275067,79.86,79.832,52.52]
[1770835283929,12.94275067,79.86,79.824,1.39986079]
[1770835284329,12.94275067,79.86,79.825,43.84591292]
[1770835284832,12.94275067,79.85,79.825,13.92726448]
[1770835285141,12.94275067,79.85,79.82,1.39986079]
[1770835285435,12.94275067,79.84,79.819,65.04825087]
[1770835286132,12.94275067,79.84,79.82,1.39986079]
[1770835286635,12.94275067,79.85,79.821,12.52803147]
[1770835287025,9.9781544,79.876,79.841,1.39986079]
[1770835287844,12.94275067,79.87,79.841,1.39986079]
[1770835288564,12.94275067,79.86,79.819,52.52]
[1770835288844,12.94275067,79.86,79.807,1.39986079]
[1770835288845,12.94275067,79.83,79.807,1.39986079]
[1770835289723,12.94275067,79.83,79.791,1.39986079]
[1770835290449,12.94275067,79.85,79.811,1.39986079]
[1770835291042,12.94275067,79.84,79.813,1.39986079]
[1770835292517,12.94275067,79.85,79.813,1.39986079]
[1770835292929,12.52363836,79.849,79.815,1.39986079]
[1770835293245,12.94275067,79.84,79.815,1.39986079]
[1770835293622,12.52363836,79.849,79.815,1.39986079]
[1770835294150,12.94275067,79.84,79.815,1.39986079]
[1770835295050,12.94275067,79.84,79.817,1.39986079]
[1770835295350,25.4663106,79.85,79.817,1.39986079]
[1770835297040,12.94275067,79.85,79.817,1.39986079]
[1770835297244,25.46626961,79.85,79.819,1.39986079]
[1770835298845,25.46626961,79.85,79.813,1.39986079]
[1770835298846,12.52351894,79.85,79.813,1.39986079]
[1770835299031,12.94275067,79.85,79.814,1.39986079]
[1770835299230,12.94275067,79.85,79.817,1.39986079]
[1770835299738,12.52363836,79.849,79.817,1.39986079]
[1770835300543,12.94275067,79.85,79.817,1.39986079]
[1770835300739,12.94275067,79.87,79.831,1.39986079]
[1770835301423,12.52050232,79.869,79.833,1.39986079]
[1770835302251,12.94275067,79.86,79.833,1.39986079]
[1770835302549,12.52050232,79.869,79.833,1.39986079]
[1770835302727,12.94275067,79.86,79.833,1.39986079]
[1770835303421,9.9781544,79.874,79.833,1.39986079]
[1770835303627,12.94275067,79.85,79.825,1.39986079]
[1770835303824,12.94275067,79.86,79.825,1.39986079]
[1770835304656,12.5198753,79.873,79.831,1.39986079]
[1770835304848,12.51925597,79.877,79.841,1.39986079]
[1770835306130,12.51925597,79.877,79.843,1.39986079]
[1770835306329,12.51925597,79.877,79.842,12.52473635]
[1770835306330,5.36086188,79.91,79.861,1.39986079]
[1770835306552,5.36086188,79.906,79.862,1.39986079]
[1770835306752,5.36086188,79.906,79.86,12.94275067]
[1770835306753,5.36086188,79.906,79.864,1.39986079]
[1770835306944,12.94275067,79.9,79.864,1.39986079]
[1770835308346,12.51580119,79.899,79.866,1.39986079]
[1770835309238,12.51580119,79.899,79.863,52.56]
[1770835309239,12.94275067,79.88,79.863,52.56]
[1770835309439,12.94275067,79.87,79.843,12.52453008]
[1770835309639,12.94275067,79.87,79.844,1.39986079]
[1770835309834,12.94275067,79.86,79.827,1.39986079]
[1770835310057,12.94275067,79.84,79.809,1.39986079]
[1770835310256,12.94275067,79.84,79.81,1.39986079]
[1770835316275,12.94275067,79.85,79.812,1.39986079]
[1770835316617,12.94275067,79.84,79.812,1.39986079]
[1770835316768,12.94275067,79.83,79.805,1.39986079]
[1770835316964,12.94275067,79.84,79.805,1.39986079]
[1770835318249,12.52520697,79.839,79.807,1.39986079]
[1770835320270,43.83273427,79.849,79.789,1.39986079]
[1770835320474,12.94275067,79.82,79.783,1.39986079]
[1770835321376,12.94275067,79.82,79.785,1.39986079]
[1770835321672,12.94275067,79.84,79.801,1.39986079]
[1770835322047,43.83273427,79.849,79.801,1.39986079]
[1770835322048,12.94275067,79.83,79.801,1.39986079]
[1770835322250,12.52677598,79.829,79.8,52.64]
[1770835322551,12.94275067,79.81,79.775,1.39986079]
[1770835322748,12.94275067,79.8,79.775,1.39986079]
[1770835323165,12.94275067,79.79,79.761,1.39986079]
[1770835323564,9.9781544,79.817,79.761,1.39986079]
[1770835324561,5.36086188,79.815,79.762,12.53729846]
[1770835324863,5.36086188,79.815,79.763,1.39986079]
[1770835325065,5.36086188,79.813,79.763,1.39986079]
[1770835326561,5.36086188,79.804,79.763,1.39986079]
[1770835327490,47.6,79.803,79.763,1.39986079]
[1770835327669,47.6,79.803,79.747,31.34908656]
[1770835327670,47.6,79.803,79.765,1.39986079]
[1770835328887,12.53101426,79.802,79.767,1.39986079]
[1770835330184,12.53101426,79.802,79.759,12.53767902]
[1770835330403,5.36086188,79.801,79.757,1.39986079]
[1770835330693,5.36086188,79.799,79.757,1.39986079]
[1770835331362,50.08442566,79.866,79.761,1.39986079]
[1770835331572,5.36086188,79.824,79.771,1.39986079]
[1770835331761,43.83712628,79.841,79.791,1.39986079]
[1770835331963,5.36086188,79.84,79.791,1.39986079]
[1770835333472,43.83822441,79.839,79.792,12.53258472]
[1770835333666,53.04086188,79.838,79.793,1.39986079]
[1770835333871,5.36086188,79.838,79.793,1.39986079]
[1770835334079,5.36086188,79.836,79.793,1.39986079]
[1770835335575,5.36086188,79.834,79.795,1.39986079]
[1770835336668,5.36086188,79.87,79.811,1.39986079]
[1770835336874,5.36086188,79.868,79.811,1.39986079]
[1770835337191,4.61729252,79.854,79.811,1.39986079]
[1770835338199,9.9781544,79.849,79.792,1.39986079]
[1770835338395,5.36086188,79.835,79.792,1.39986079]
[1770835338867,5.36086188,79.847,79.792,1.39986079]
[1770835339071,5.36086188,79.843,79.792,1.39986079]
[1770835339270,5.36086188,79.841,79.792,1.39986079]
[1770835340703,0.22,80.001,79.794,1.39986079]
[1770835340704,12.5250501,79.84,79.794,1.39986079]
[1770835341581,12.5242541,79.846,79.794,1.39986079]
[1770835341784,12.5242541,79.846,79.801,1.39986079]
[1770835342789,31.30752758,79.853,79.803,1.39986079]
[1770835345276,31.30752758,79.853,79.805,1.39986079]
[1770835347196,5.36086188,79.856,79.807,1.39986079]
[1770835347401,5.36086188,79.856,79.811,1.39986079]
[1770835350696,5.36086188,79.854,79.813,1.39986079]
[1770835352599,12.52269738,79.855,79.813,1.39986079]
[1770835352903,12.52269738,79.855,79.81,12.94002246]
[1770835352904,5.36086188,79.874,79.831,1.39986079]
[1770835354805,12.5198753,79.873,79.833,1.39986079]
[1770835355406,12.51940507,79.876,79.841,1.39986079]
[1770835357810,5.36086188,79.884,79.843,1.39986079]
[1770835359198,91.63335973,79.885,79.843,1.39986079]
[1770835359515,5.36086188,79.884,79.843,1.39986079]
[1770835359717,47.82,79.885,79.851,1.39986079]
[1770835359925,49.16890753,79.894,79.853,1.39986079]
[1770835362018,111.7518299,79.894,79.841,1.39986079]
[1770835362214,4.61729252,79.875,79.826,1.39986079]
[1770835362420,53.22086188,79.874,79.826,1.39986079]
[1770835363412,52.47729252,79.873,79.826,1.39986079]
[1770835364219,111.7811343,79.872,79.826,1.39986079]
[1770835365417,49.18207134,79.87,79.826,1.39986079]
[1770835366020,5.36086188,79.868,79.826,1.39986079]
[1770835366517,5.36086188,79.866,79.827,1.39986079]
[1770835368921,5.36086188,79.864,79.827,1.39986079]
[1770835369929,5.36086188,79.864,79.829,1.39986079]
[1770835371626,43.82505039,79.863,79.829,1.39986079]
[1770835375839,43.82505039,79.863,79.83,1.39986079]
[1770835379118,5.36086188,79.861,79.83,1.39986079]
[1770835380350,43.82505039,79.863,79.781,1.39986079]
[1770835380351,5.36086188,79.849,79.781,1.39986079]
[1770835380648,49.20128274,79.835,79.782,1.39986079]
[1770835380855,49.20128274,79.835,79.784,1.39986079]
[1770835381554,30.0,79.831,79.791,1.39986079]
[1770835382454,30.0,79.831,79.801,1.39986079]
[1770835382665,48.26,79.856,79.812,0.05596152]
[1770835382850,60.78258674,79.856,79.812,0.05596152]
[1770835383062,1.31591438,79.855,79.812,0.05596152]
[1770835383358,1.31591438,79.853,79.812,0.05596152]
[1770835384959,1.31591438,79.851,79.812,0.05596152]
[1770835385955,1.31591438,79.851,79.821,0.06790963]
[1770835386260,12.52265502,79.856,79.821,0.06790963]
[1770835386433,1.31591438,79.855,79.821,0.06790963]
[1770835387856,1.31591438,79.853,79.821,0.06790963]
[1770835388951,12.52316786,79.852,79.821,0.06790963]
[1770835389153,1.31591438,79.851,79.821,0.06790963]
[1770835390053,1.31591438,79.851,79.814,0.0793102]
[1770835390253,1.31591438,79.851,79.813,12.5292872]
[1770835391042,1.31591438,79.849,79.807,0.0793102]
[1770835391439,1.31591438,79.843,79.795,52.12208243]
[1770835392061,1.31591438,79.843,79.796,0.08482395]
[1770835393735,1.31591438,79.834,79.797,0.08755449]
[1770835395753,1.31591438,79.832,79.797,0.08755449]
[1770835397141,1.31591438,79.83,79.797,0.08755449]
[1770835397546,1.31591438,79.85,79.801,0.09806436]
[1770835397749,5.36086188,79.865,79.821,0.09806436]
[1770835400661,12.52128618,79.864,79.821,0.09806436]
[1770835401756,1.35156654,79.863,79.821,0.09806436]
[1770835402456,1.35156654,79.863,79.811,43.85360413]
[1770835402457,1.35156654,79.861,79.814,0.11297878]
[1770835403465,5.36086188,79.854,79.811,12.52960118]
[1770835403666,1.35156654,79.853,79.811,12.52960118]
[1770835403865,1.35156654,79.853,79.811,43.96765029]
[1770835404866,12.52316786,79.852,79.811,43.85360413]
[1770835405073,1.35156654,79.851,79.812,0.11274903]
[1770835405260,12.52210344,79.859,79.812,0.11274903]
[1770835405464,13.87366998,79.859,79.821,0.11274903]
[1770835405666,1.35156654,79.858,79.821,0.11274903]
[1770835405970,1.35156654,79.865,79.831,0.11146909]
[1770835406178,1.35156654,79.864,79.831,0.11146909]
[1770835407969,1.36477864,79.862,79.811,43.85360413]
[1770835408162,1.36477864,79.862,79.811,43.96131769]
[1770835408475,1.36477864,79.854,79.811,12.63731474]
[1770835409150,1.36477864,79.854,79.811,12.52960118]
[1770835409478,1.36477864,79.844,79.805,52.04]
[1770835409652,1.36477864,79.844,79.79,4.82996131]
[1770835409653,1.36477864,79.834,79.797,12.5317593]